bitfinex/quotes_BTCUSD_20250205
["timestamp","ask_amount","ask_price","bid_price","bid_amount"]
[1738714605832,0.00036513,97870.0,97868.0,0.122613]
[1738714606238,0.00036513,97870.0,97869.0,0.10238506]
[1738714606410,0.00036513,97870.0,97869.0,0.49912643]
[1738714606890,0.00036513,97870.0,97869.0,0.64912643]
[1738714607518,0.00036513,97870.0,97869.0,0.96344013]
[1738714607720,0.0454,97918.0,97895.0,0.12258]
[1738714607937,0.00030587,97896.0,97895.0,0.61681805]
[1738714608144,0.00030587,97896.0,97895.0,0.49890162]
[1738714609104,0.00030587,97896.0,97895.0,0.39651656]
[1738714610590,0.00030587,97896.0,97895.0,0.00466357]
[1738714610794,0.122588,97889.0,97880.0,0.17222164]
[1738714611014,0.12259,97887.0,97880.0,0.2746067]
[1738714611217,0.122592,97885.0,97880.0,0.2746067]
[1738714611617,0.16344,97895.0,97880.0,0.2746067]
[1738714611822,0.163453,97888.0,97880.0,0.2746067]
[1738714612180,0.122593,97885.0,97881.0,0.00459191]
[1738714612331,0.122596,97883.0,97881.0,0.00459191]
[1738714613140,0.122596,97883.0,97873.0,0.2813137]
[1738714613362,0.12261,97871.0,97870.0,0.17222164]
[1738714613537,0.163462,97882.0,97861.0,0.17222164]
[1738714613538,0.122614,97868.0,97861.0,0.17222164]
[1738714613881,0.122603,97877.0,97862.0,0.10238506]
[1738714614034,0.163474,97875.0,97862.0,0.10238506]
[1738714614238,0.122607,97874.0,97865.0,0.29483864]
[1738714614437,0.122607,97874.0,97866.0,0.10238506]
[1738714614842,0.0466,97885.0,97866.0,0.10238506]
[1738714615046,0.0466,97885.0,97869.0,0.122612]
[1738714615307,0.122598,97881.0,97871.0,0.12261]
[1738714615495,0.122603,97877.0,97867.0,0.122615]
[1738714615707,0.122603,97877.0,97868.0,0.10238506]
[1738714615912,0.122602,97878.0,97869.0,0.122612]
[1738714616086,0.0466,97885.0,97868.0,0.10238506]
[1738714616421,0.122605,97875.0,97868.0,0.38369876]
[1738714616990,0.163468,97879.0,97868.0,0.38369876]
[1738714617418,0.00030587,97896.0,97892.0,0.122583]
[1738714617598,0.00030587,97896.0,97886.0,0.17222164]
[1738714617808,0.00030587,97896.0,97893.0,0.122582]
[1738714618140,0.00030587,97896.0,97887.0,0.10238506]
[1738714618637,0.122588,97889.0,97887.0,0.10238506]
[1738714618849,0.122585,97892.0,97887.0,0.10238506]
[1738714619040,0.00030587,97896.0,97887.0,0.10238506]
[1738714619261,0.122582,97894.0,97887.0,0.10238506]
[1738714619715,0.00030587,97896.0,97888.0,0.00463424]
[1738714619918,0.00030587,97896.0,97889.0,0.10238506]
[1738714620139,0.00030587,97896.0,97895.0,0.12258]
[1738714620351,0.00030587,97896.0,97895.0,0.22496506]
[1738714620523,0.00030587,97896.0,97895.0,0.2295993]
[1738714621511,0.00030587,97896.0,97895.0,0.1070193]
[1738714622821,0.00030587,97896.0,97895.0,0.10238506]
[1738714623291,0.00030587,97896.0,97888.0,0.67316669]
[1738714623442,0.00030587,97896.0,97889.0,0.10238506]
[1738714623906,0.122586,97891.0,97889.0,0.10238506]
[1738714624300,0.17404364,97891.0,97888.0,0.2813137]
[1738714624502,0.122587,97890.0,97888.0,0.2813137]
[1738714625274,0.122607,97873.0,97872.0,0.2813137]
[1738714626657,0.122607,97874.0,97872.0,0.2813137]
[1738714627447,0.1675618,97874.0,97872.0,0.2813137]
[1738714627677,0.122607,97874.0,97872.0,0.2813137]
[1738714629421,0.183847,97874.0,97872.0,0.2813137]
[1738714629622,0.01894698,97873.0,97872.0,0.2813137]
[1738714630027,0.183851,97870.0,97854.0,0.2813137]
[1738714630407,0.183851,97870.0,97850.0,0.17222164]
[1738714630408,0.30923606,97870.0,97850.0,0.17222164]
[1738714630610,0.39678746,97870.0,97850.0,0.17222164]
[1738714631042,0.44610207,97870.0,97850.0,0.17222164]
[1738714631440,0.44610207,97870.0,97842.0,0.2813137]
[1738714631773,0.38316561,97870.0,97860.0,0.17222164]
[1738714632726,0.04931461,97870.0,97860.0,0.17222164]
[1738714632906,0.17192561,97870.0,97860.0,0.17222164]
[1738714634081,0.04931461,97870.0,97861.0,0.2813137]
[1738714634283,0.04931461,97870.0,97865.0,0.122617]
[1738714634497,0.04931461,97870.0,97861.0,0.2813137]
[1738714637998,0.04931461,97870.0,97868.0,0.122613]
[1738714638205,0.04931461,97870.0,97869.0,0.10249196]
[1738714638982,0.122594,97884.0,97869.0,0.10249196]
[1738714639199,0.122594,97884.0,97877.0,0.122602]
[1738714639399,0.122594,97884.0,97874.0,0.17222164]
[1738714639559,0.122597,97882.0,97874.0,0.2746067]
[1738714639943,0.122597,97882.0,97874.0,0.3972117]
[1738714640072,0.01905258,97883.0,97874.0,0.2746067]
[1738714640481,0.01905258,97882.0,97877.0,0.122602]
[1738714640708,0.01905258,97882.0,97878.0,0.1226]
[1738714641082,0.01905258,97882.0,97874.0,0.2746067]
[1738714641083,0.01905258,97882.0,97880.0,0.122598]
[1738714641329,0.01905258,97881.0,97880.0,0.122598]
[1738714642084,0.01905258,97881.0,97878.0,0.1226]
[1738714642324,0.01905258,97881.0,97876.0,0.122603]
[1738714642705,0.01905258,97881.0,97874.0,0.2746067]
[1738714642883,0.01905258,97881.0,97879.0,0.122599]
[1738714643079,0.01905258,97881.0,97875.0,0.163473]
[1738714643284,0.01905258,97881.0,97877.0,0.122602]
[1738714643539,0.01905258,97881.0,97875.0,0.122604]
[1738714643792,0.122595,97883.0,97874.0,0.2746067]
[1738714643793,0.03051026,97880.0,97874.0,0.2746067]
[1738714643981,0.122595,97883.0,97876.0,0.122603]
[1738714644192,0.0002245,97882.0,97876.0,0.122603]
[1738714644407,0.0002245,97882.0,97879.0,0.122599]
[1738714644621,0.0002245,97882.0,97874.0,0.2746067]
[1738714644831,0.122605,97876.0,97874.0,0.17222164]
[1738714645043,0.122611,97870.0,97869.0,0.0001069]
[1738714645882,0.168111,97870.0,97869.0,0.0001069]
[1738714646298,0.18716868,97870.0,97869.0,0.0001069]
[1738714647393,0.24840868,97870.0,97869.0,0.0001069]
[1738714647564,0.27140868,97870.0,97869.0,0.0001069]
[1738714647745,0.450849,97870.0,97869.0,0.0001069]
[1738714648162,0.600849,97870.0,97869.0,0.0001069]
[1738714648426,0.600849,97870.0,97830.0,0.17222164]
[1738714648427,0.06124,97868.0,97830.0,0.17222164]
[1738714648636,0.122646,97842.0,97830.0,0.17222164]
[1738714648894,0.122646,97842.0,97828.0,0.08187536]
[1738714648895,0.233786,97842.0,97828.0,0.08187536]
[1738714649164,0.122663,97829.0,97828.0,0.08187536]
[1738714649427,0.122663,97829.0,97820.0,0.17222164]
[1738714649428,0.122673,97821.0,97820.0,0.17222164]
[1738714649627,0.122673,97821.0,97810.0,0.17222164]
[1738714649786,0.122685,97811.0,97810.0,0.17222164]
[1738714649992,0.163571,97817.0,97802.0,0.10238506]
[1738714650197,0.122682,97814.0,97803.0,0.286289]
[1738714650378,0.224789,97830.0,97804.0,0.10238506]
[1738714650379,0.122686,97811.0,97804.0,0.10238506]
[1738714650586,0.01906195,97816.0,97804.0,0.10238506]
[1738714650587,0.122687,97810.0,97804.0,0.10238506]
[1738714650871,0.01906195,97816.0,97804.0,0.10238506]
[1738714651061,0.01906195,97816.0,97814.0,0.122681]
[1738714651203,0.01906195,97816.0,97815.0,0.10238506]
[1738714651388,0.163532,97840.0,97815.0,0.10238506]
[1738714651591,0.12266,97831.0,97830.0,0.17222164]
[1738714651813,0.163544,97833.0,97821.0,0.17222164]
[1738714652029,0.122671,97823.0,97821.0,0.17222164]
[1738714652251,0.122681,97814.0,97813.0,0.17222164]
[1738714652449,0.01903231,97822.0,97804.0,0.17222164]
[1738714652649,0.01903231,97822.0,97812.0,0.17222164]
[1738714652873,0.01903231,97822.0,97813.0,0.10238506]
[1738714653073,0.01903231,97822.0,97820.0,0.122673]
[1738714653247,0.01903231,97822.0,97814.0,0.163575]
[1738714653248,0.01903231,97822.0,97815.0,0.00122667]
[1738714653463,0.122675,97819.0,97816.0,0.10238506]
[1738714653656,0.01903231,97821.0,97816.0,0.10238506]
[1738714653891,0.01903231,97821.0,97816.0,0.22506306]
[1738714654418,0.01903231,97821.0,97817.0,0.122677]
[1738714654622,0.01903231,97820.0,97817.0,0.122677]
[1738714655015,0.01903231,97820.0,97816.0,0.10238506]
[1738714655155,0.01903231,97820.0,97818.0,0.122676]
[1738714655357,0.01903231,97820.0,97819.0,0.38369876]
[1738714655565,0.01903231,97820.0,97819.0,0.53369876]
[1738714655974,0.01578138,97820.0,97819.0,0.92555175]
[1738714656178,0.09135099,97837.0,97836.0,0.200554]
[1738714656427,0.09135099,97837.0,97836.0,0.58425276]
[1738714657433,0.16349,97866.0,97855.0,0.122629]
[1738714657766,0.122621,97863.0,97856.0,0.17222164]
[1738714657908,0.122616,97867.0,97856.0,0.17222164]
[1738714658085,0.09135099,97874.0,97857.0,0.10238506]
[1738714658316,0.16370928,97869.0,97859.0,0.122624]
[1738714658581,0.04636343,97868.0,97856.0,0.17222164]
[1738714658815,0.00022428,97869.0,97840.0,0.163531]
[1738714659045,0.122624,97860.0,97859.0,0.17222164]
[1738714659272,0.00022428,97869.0,97846.0,0.10238506]
[1738714659481,0.122624,97860.0,97859.0,0.17222164]
[1738714659687,0.122628,97857.0,97850.0,0.17222164]
[1738714659908,0.12263,97855.0,97848.0,0.122638]
[1738714660139,0.163485,97868.0,97846.0,0.10238506]
[1738714660379,0.122625,97859.0,97858.0,0.17222164]
[1738714660629,0.122633,97853.0,97849.0,0.17222164]
[1738714660877,0.122631,97855.0,97847.0,0.2813137]
[1738714661104,0.00022428,97869.0,97851.0,0.122635]
[1738714661340,0.00022428,97869.0,97859.0,0.17222164]
[1738714661552,0.00022428,97869.0,97860.0,0.10238506]
[1738714661783,0.00022428,97869.0,97867.0,0.122614]
[1738714662027,0.00022428,97869.0,97867.0,0.4039277]
[1738714662223,0.00022428,97869.0,97867.0,0.2813137]
[1738714663063,0.00022428,97869.0,97867.0,0.4039287]
[1738714663712,0.00022428,97869.0,97868.0,0.10361112]
[1738714665100,0.00022428,97869.0,97868.0,0.10238506]
[1738714665308,0.00022428,97869.0,97867.0,0.2813137]
[1738714665538,0.00022428,97869.0,97867.0,0.38369876]
[1738714666283,0.12283728,97869.0,97867.0,0.2813137]
[1738714666824,0.122624,97860.0,97859.0,0.17222164]
[1738714667027,0.122624,97860.0,97859.0,0.00014063]
[1738714667380,0.122623,97861.0,97859.0,0.00014063]
[1738714667513,0.1512348,97861.0,97859.0,0.00014063]
[1738714667714,0.122623,97861.0,97859.0,0.00014063]
[1738714669997,0.00022428,97869.0,97859.0,0.00014063]
[1738714670305,0.00022428,97869.0,97859.0,0.17236227]
[1738714670508,0.122623,97861.0,97859.0,0.17236227]
[1738714670651,0.122623,97861.0,97859.0,0.00014063]
[1738714671275,0.0122623,97860.0,97859.0,0.00014063]
[1738714671510,0.122623,97861.0,97859.0,0.00014063]
[1738714672306,0.1041,97860.0,97859.0,0.00014063]
[1738714672509,0.40448506,97860.0,97859.0,0.00014063]
[1738714672886,0.40448506,97860.0,97859.0,6.3e-07]
[1738714673086,0.122671,97822.0,97820.0,0.17222164]
[1738714673289,0.122671,97822.0,97808.0,0.2813137]
[1738714673290,0.122671,97822.0,97812.0,0.17222164]
[1738714673491,0.048,97831.0,97812.0,0.17222164]
[1738714673730,0.048,97831.0,97821.0,0.17232844]
[1738714674121,0.122671,97823.0,97821.0,0.17232844]
[1738714674466,0.122671,97823.0,97821.0,0.0001068]
[1738714674645,0.048,97831.0,97821.0,0.0001068]
[1738714674802,0.122671,97823.0,97821.0,0.0001068]
[1738714675020,0.0122671,97822.0,97821.0,0.0001068]
[1738714677294,0.122671,97823.0,97821.0,0.0001068]
[1738714680587,0.163525,97845.0,97821.0,0.0001068]
[1738714680839,0.173,97847.0,97821.0,0.17232844]
[1738714681031,0.12267,97823.0,97821.0,0.17232844]
[1738714681238,0.12267,97823.0,97821.0,0.0001068]
[1738714681441,0.012267,97822.0,97821.0,0.0001068]
[1738714682639,0.12267,97823.0,97821.0,0.0001068]
[1738714682847,0.122671,97823.0,97821.0,0.0001068]
[1738714683048,0.06132,97822.0,97821.0,0.0001068]
[1738714683495,0.33670506,97822.0,97821.0,0.0001068]
[1738714684334,0.39537664,97822.0,97821.0,0.0001068]
[1738714684541,0.184019,97800.0,97787.0,0.2813137]
[1738714684737,0.50800406,97800.0,97799.0,0.01014839]
[1738714686326,0.50900406,97800.0,97799.0,0.01014839]
[1738714687246,0.51900406,97800.0,97799.0,0.01014839]
[1738714687714,0.5191219,97800.0,97799.0,0.01014839]
[1738714688186,0.4568019,97800.0,97799.0,0.01014839]
[1738714688458,0.54143299,97800.0,97799.0,0.01014839]
[1738714688698,0.54743299,97800.0,97799.0,0.01114839]
[1738714688950,0.54143299,97800.0,97799.0,0.01014839]
[1738714689185,0.54643299,97800.0,97799.0,0.01114839]
[1738714690266,0.54843299,97800.0,97799.0,0.01114839]
[1738714690647,0.4638019,97800.0,97799.0,0.01114839]
[1738714690859,0.36141684,97800.0,97799.0,0.01114839]
[1738714691104,0.35941684,97800.0,97799.0,0.01114839]
[1738714691410,0.36141684,97800.0,97799.0,0.01114839]
[1738714691971,0.178299,97800.0,97799.0,0.01114839]
[1738714692191,0.007,97800.0,97799.0,0.01114839]
[1738714692578,0.007,97800.0,97799.0,0.01602442]
[1738714693221,0.005,97800.0,97799.0,0.01602442]
[1738714693372,0.005,97800.0,97799.0,0.01114839]
[1738714693754,0.005,97800.0,97799.0,0.01599925]
[1738714693871,0.0218591,97800.0,97799.0,0.01599925]
[1738714694269,0.0168591,97800.0,97799.0,0.01014839]
[1738714694734,0.0178591,97800.0,97799.0,0.01014839]
[1738714695143,0.1678591,97800.0,97799.0,0.01014839]
[1738714695551,0.33984416,97800.0,97799.0,0.01014839]
[1738714695751,0.34084416,97800.0,97799.0,0.00237824]
[1738714695959,0.35084416,97800.0,97799.0,0.00237824]
[1738714696152,0.34984416,97800.0,97799.0,0.00237824]
[1738714696339,1.84984416,97800.0,97799.0,0.00237824]
[1738714696749,0.12273,97775.0,97772.0,0.0001069]
[1738714696905,0.2155302,97775.0,97774.0,0.08234445]
[1738714697105,0.2385302,97775.0,97774.0,0.00046909]
[1738714697965,0.2385302,97775.0,97774.0,0.00146909]
[1738714698336,0.55223526,97775.0,97774.0,0.00146909]
[1738714698725,0.40485,97775.0,97774.0,0.00146909]
[1738714698929,0.38185,97775.0,97774.0,0.00046909]
[1738714699130,0.38185,97775.0,97774.0,0.00146909]
[1738714699337,0.23185,97775.0,97774.0,0.00146909]
[1738714700485,0.23185,97775.0,97774.0,0.00046909]
[1738714700725,0.30677145,97775.0,97774.0,0.00046909]
[1738714701175,0.30377145,97775.0,97774.0,0.00046909]
[1738714701384,0.30377145,97775.0,97774.0,0.00146909]
[1738714702651,0.42915651,97775.0,97774.0,0.00146909]
[1738714703718,0.42915651,97775.0,97774.0,0.00046909]
[1738714704151,0.42915651,97775.0,97774.0,0.00146909]
[1738714704375,0.42915651,97775.0,97774.0,0.00157599]
[1738714707343,0.42915651,97775.0,97774.0,0.00057599]
[1738714707622,0.57915651,97775.0,97774.0,0.00057599]
[1738714708266,0.50723506,97775.0,97774.0,0.00057599]
[1738714709516,0.18405,97775.0,97774.0,0.00057599]
[1738714711132,0.18405,97775.0,97774.0,0.00157599]
[1738714711923,0.30943506,97775.0,97774.0,0.00157599]
[1738714712771,0.30943506,97775.0,97774.0,0.0017077]
[1738714712972,0.37414458,97775.0,97774.0,0.0017077]
[1738714713382,0.52414458,97775.0,97774.0,0.0007077]
[1738714713576,0.52414458,97775.0,97774.0,0.0017077]
[1738714714029,0.52414458,97775.0,97774.0,0.0007077]
[1738714714202,0.52514458,97775.0,97774.0,0.0007077]
[1738714714767,0.52614458,97775.0,97774.0,0.0007077]
[1738714715585,0.35905,97775.0,97774.0,0.0007077]
[1738714715802,0.33605,97775.0,97774.0,0.0007077]
[1738714716407,0.33505,97775.0,97774.0,0.0007077]
[1738714716617,0.33405,97775.0,97774.0,0.0007077]
[1738714716827,0.18505,97775.0,97774.0,0.0007077]
[1738714716979,0.18405,97775.0,97774.0,0.0007077]
[1738714717199,0.23632101,97775.0,97774.0,0.0007077]
[1738714717399,0.23632101,97775.0,97774.0,0.0017077]
[1738714718628,0.11359101,97775.0,97774.0,0.0017077]
[1738714718832,0.09135099,97790.0,97774.0,0.0017077]
[1738714718833,0.06132,97785.0,97774.0,0.0017077]
[1738714719234,0.122729,97776.0,97775.0,0.00497812]
[1738714720038,0.12273,97775.0,97774.0,0.0017077]
[1738714720469,0.12273,97775.0,97774.0,0.0007077]
[1738714720850,0.1902253,97775.0,97774.0,0.0007077]
[1738714721266,0.1902253,97775.0,97774.0,0.0017077]
[1738714722243,0.2515453,97775.0,97774.0,0.0017077]
[1738714722727,0.37693036,97775.0,97774.0,0.0017077]
[1738714723028,0.4087657,97775.0,97774.0,0.0017077]
[1738714723592,0.5587657,97775.0,97774.0,0.0007077]
[1738714723805,0.5587657,97775.0,97774.0,0.0017077]
[1738714724239,0.5587657,97775.0,97774.0,0.0007077]
[1738714724390,0.6044657,97775.0,97774.0,0.0007077]
[1738714724595,0.6064657,97775.0,97774.0,0.0007077]
[1738714725216,0.334053,97773.0,97772.0,9e-07]
[1738714725434,0.357054,97772.0,97771.0,8e-07]
[1738714725638,0.357054,97772.0,97731.0,0.08187536]
[1738714725639,0.357069,97760.0,97731.0,0.08187536]
[1738714725976,0.4912894,97760.0,97759.0,0.00024705]
[1738714726262,0.5369894,97760.0,97759.0,0.00024705]
[1738714726472,0.70782064,97760.0,97759.0,0.00024705]
[1738714726833,0.71282064,97760.0,97759.0,0.00124705]
[1738714727238,0.71482064,97760.0,97759.0,0.00124705]
[1738714727497,0.71482064,97760.0,97759.0,0.00093853]
[1738714727498,0.5439894,97760.0,97759.0,0.00093853]
[1738714727700,0.18408,97751.0,97750.0,0.10221314]
[1738714727905,0.163669,97759.0,97741.0,0.1840885]
[1738714727906,0.06132,97749.0,97741.0,0.1840885]
[1738714728108,0.122772,97742.0,97741.0,0.00010062]
[1738714728279,0.184092,97742.0,97741.0,0.00010062]
[1738714728869,0.2352392,97742.0,97741.0,0.00010062]
[1738714729276,0.36062426,97742.0,97741.0,0.00010062]
[1738714730088,0.36062426,97742.0,97741.0,0.00110062]
[1738714730329,0.36062426,97742.0,97741.0,0.00010062]
[1738714731064,0.184092,97742.0,97741.0,0.00010062]
[1738714732347,0.185092,97742.0,97741.0,0.00010062]
[1738714732837,0.184092,97742.0,97741.0,0.00010062]
[1738714733679,0.184092,97742.0,97741.0,0.00110062]
[1738714733880,0.184092,97742.0,97741.0,0.00010062]
[1738714734082,0.2362587,97742.0,97741.0,0.00010062]
[1738714734301,0.2362587,97742.0,97741.0,0.00110062]
[1738714734506,0.184092,97742.0,97741.0,0.00110062]
[1738714734704,0.2756438,97755.0,97747.0,0.122765]
[1738714734924,0.2143238,97755.0,97748.0,0.54738276]
[1738714735165,0.0915678,97755.0,97749.0,0.122763]
[1738714735373,0.0915678,97755.0,97754.0,0.281]
[1738714735570,0.00996,97775.0,97774.0,0.122732]
[1738714735771,0.00996,97775.0,97774.0,0.49423805]
[1738714735997,0.00996,97775.0,97774.0,0.39688485]
[1738714736908,0.07128,97775.0,97774.0,0.00603186]
[1738714737072,0.08729241,97775.0,97774.0,0.001]
[1738714737251,0.08729241,97775.0,97765.0,0.10221314]
[1738714737252,0.06132,97771.0,97765.0,0.10221314]
[1738714737599,0.122741,97767.0,97766.0,0.00494463]
[1738714737957,0.163651,97769.0,97759.0,0.12275]
[1738714738158,0.07128,97775.0,97757.0,0.22496514]
[1738714738394,0.122742,97766.0,97765.0,0.10221314]
[1738714738558,0.122743,97765.0,97758.0,0.122751]
[1738714739206,0.00022471,97759.0,97758.0,0.122751]
[1738714740001,0.00022471,97759.0,97756.0,0.10221314]
[1738714740305,0.00022471,97759.0,97757.0,0.122752]
[1738714741309,0.00022471,97759.0,97756.0,0.10238506]
[1738714741767,0.00022471,97759.0,97756.0,0.22513806]
[1738714741908,0.00022471,97759.0,97756.0,0.10238506]
[1738714742112,0.00022471,97759.0,97757.0,0.122753]
[1738714742312,0.00022471,97759.0,97758.0,0.10361246]
[1738714744177,0.00022471,97759.0,97758.0,0.38492616]
[1738714744386,0.00022471,97759.0,97758.0,0.38369876]
[1738714746305,0.12297471,97759.0,97758.0,0.2813137]
[1738714746507,0.13527218,97759.0,97758.0,0.2813137]
[1738714747161,0.13527218,97759.0,97758.0,0.28622636]
[1738714747877,0.12297471,97759.0,97758.0,0.28622636]
[1738714750076,0.12297471,97759.0,97758.0,0.00491266]
[1738714750284,0.00022471,97759.0,97749.0,0.10232014]
[1738714750449,0.122755,97755.0,97749.0,0.10232014]
[1738714750654,0.122759,97752.0,97749.0,0.000107]
[1738714751098,0.122757,97754.0,97749.0,0.000107]
[1738714751331,0.1514048,97751.0,97749.0,0.000107]
[1738714752083,0.122762,97751.0,97749.0,0.000107]
[1738714754605,0.023,97750.0,97749.0,0.000107]
[1738714755129,0.32198506,97750.0,97749.0,0.000107]
[1738714755534,0.34105961,97750.0,97749.0,0.000107]
[1738714756446,0.34205961,97750.0,97749.0,0.000107]
[1738714756619,0.34105961,97750.0,97749.0,0.000107]
[1738714756780,0.42889958,97750.0,97749.0,0.000107]
[1738714756982,0.43089958,97750.0,97749.0,0.000107]
[1738714757181,0.42889958,97750.0,97749.0,0.000107]
[1738714758370,0.49021958,97750.0,97749.0,0.000107]
[1738714758533,0.49321958,97750.0,97749.0,0.000107]
[1738714759153,0.49221958,97750.0,97749.0,0.000107]
[1738714759375,0.49021958,97750.0,97749.0,0.000107]
[1738714759598,0.49121958,97750.0,97749.0,0.000107]
[1738714759801,0.49521958,97750.0,97749.0,0.000107]
[1738714760862,0.49421958,97750.0,97749.0,0.000107]
[1738714761268,0.49521958,97750.0,97749.0,0.000107]
[1738714761973,0.272797,97722.0,97720.0,0.1152264]
[1738714762175,0.320697,97722.0,97721.0,0.08197598]
[1738714762374,0.44608206,97722.0,97721.0,0.00010062]
[1738714763219,0.50740206,97722.0,97721.0,0.00010062]
[1738714763732,0.52647661,97722.0,97721.0,0.00010062]
[1738714763885,0.53924332,97722.0,97721.0,0.00010062]
[1738714764089,0.53924332,97722.0,97721.0,0.00110062]
[1738714764302,0.54968777,97722.0,97721.0,0.00110062]
[1738714764506,0.25109155,97722.0,97721.0,0.00010062]
[1738714764709,0.20319155,97722.0,97721.0,0.00010062]
[1738714764937,0.20319155,97722.0,97721.0,0.00210062]
[1738714765137,0.20319155,97722.0,97721.0,0.00110062]
[1738714765339,0.20319155,97722.0,97721.0,0.00010062]
[1738714765552,0.25625551,97722.0,97721.0,0.00010062]
[1738714765709,0.25625551,97722.0,97721.0,0.00110062]
[1738714765710,0.08039455,97722.0,97721.0,0.00110062]
[1738714765919,0.184114,97725.0,97721.0,0.00110062]
[1738714766240,0.122795,97724.0,97721.0,0.00110062]
[1738714766439,0.122794,97724.0,97721.0,0.00110062]
[1738714766786,0.06132,97725.0,97721.0,0.00110062]
[1738714766980,0.225043,97726.0,97721.0,0.00110062]
[1738714767159,0.225043,97726.0,97721.0,0.00010062]
[1738714767484,0.01904092,97730.0,97726.0,0.122791]
[1738714768185,0.122782,97734.0,97727.0,0.00523988]
[1738714768414,0.122783,97733.0,97727.0,0.00523988]
[1738714768548,0.122786,97731.0,97727.0,0.00523988]
[1738714768754,0.122784,97733.0,97722.0,0.163728]
[1738714768952,0.163708,97735.0,97728.0,0.00523988]
[1738714769154,0.122785,97732.0,97726.0,0.001]
[1738714769360,0.122786,97731.0,97729.0,0.00523988]
[1738714769571,0.163704,97737.0,97726.0,0.001]
[1738714769772,0.122785,97732.0,97730.0,0.00523988]
[1738714770121,0.122785,97732.0,97731.0,0.00518646]
[1738714770255,0.122785,97732.0,97727.0,0.11507443]
[1738714770454,0.0477,97739.0,97729.0,0.001]
[1738714770661,0.122771,97743.0,97734.0,0.122781]
[1738714770863,0.122773,97742.0,97735.0,0.00518646]
[1738714771069,0.163681,97751.0,97735.0,0.00518646]
[1738714771276,0.122773,97741.0,97740.0,0.11507443]
[1738714771513,0.122773,97741.0,97733.0,0.122782]
[1738714771514,0.122779,97737.0,97731.0,0.11507443]
[1738714771716,0.122779,97737.0,97729.0,0.122788]
[1738714771923,0.06132,97751.0,97730.0,0.001]
[1738714772137,0.122774,97740.0,97732.0,0.122783]
[1738714772916,0.12278,97736.0,97727.0,0.11507443]
[1738714773148,0.163703,97738.0,97730.0,0.001]
[1738714773323,0.06132,97744.0,97730.0,0.001]
[1738714773525,0.163698,97741.0,97726.0,0.11507443]
[1738714773777,0.122781,97735.0,97731.0,0.11507443]
[1738714773904,0.122768,97746.0,97731.0,0.11507443]
[1738714774101,0.122771,97743.0,97735.0,0.12278]
[1738714774524,0.122772,97742.0,97733.0,0.23785743]
[1738714774985,0.122773,97741.0,97733.0,0.23785743]
[1738714775305,0.122773,97741.0,97735.0,0.001]
[1738714775510,0.122774,97740.0,97735.0,0.001]
[1738714775734,0.122774,97740.0,97733.0,0.23885743]
[1738714776075,0.122773,97741.0,97733.0,0.23985743]
[1738714776210,0.122773,97741.0,97733.0,0.23885743]
[1738714776666,0.122773,97741.0,97735.0,0.001]
[1738714776872,0.163694,97743.0,97735.0,0.001]
[1738714777323,0.163694,97743.0,97736.0,0.00512432]
[1738714777324,0.122778,97737.0,97736.0,0.00512432]
[1738714777658,0.00022471,97749.0,97736.0,0.00512432]
[1738714777899,0.122776,97739.0,97733.0,0.11507443]
[1738714778078,0.122777,97738.0,97735.0,0.001]
[1738714778575,0.04231484,97748.0,97733.0,0.11507443]
[1738714778926,0.04231484,97748.0,97736.0,0.002]
[1738714779089,0.04231484,97748.0,97736.0,0.001]
[1738714779292,0.00022471,97749.0,97736.0,0.001]
[1738714779293,0.122777,97738.0,97736.0,0.001]
[1738714780087,0.122777,97738.0,97735.0,0.001]
[1738714780437,0.122777,97738.0,97735.0,0.002]
[1738714780775,0.122777,97738.0,97735.0,0.001]
[1738714780989,0.00022471,97749.0,97735.0,0.001]
[1738714781185,0.122779,97737.0,97736.0,0.001]
[1738714781391,0.122779,97737.0,97736.0,0.002]
[1738714781591,0.122779,97737.0,97736.0,0.001]
[1738714781791,0.122779,97737.0,97733.0,0.11507443]
[1738714781994,0.122779,97737.0,97735.0,0.002]
[1738714782437,0.163686,97748.0,97735.0,0.001]
[1738714782865,0.122778,97737.0,97736.0,0.001]
[1738714783505,0.122778,97737.0,97736.0,0.002]
[1738714783841,0.163687,97747.0,97736.0,0.002]
[1738714784045,0.163701,97739.0,97736.0,0.002]
[1738714784353,0.122777,97738.0,97737.0,0.00512432]
[1738714784710,0.0163701,97739.0,97735.0,0.001]
[1738714784858,0.122782,97734.0,97733.0,0.11507443]
[1738714785071,0.122784,97732.0,97729.0,0.000107]
[1738714785266,0.122784,97732.0,97730.0,0.00511639]
[1738714785468,0.122781,97735.0,97730.0,0.00511639]
[1738714785675,0.163702,97738.0,97730.0,0.00511639]
[1738714785880,0.163702,97738.0,97735.0,0.001]
[1738714786078,0.163707,97736.0,97729.0,0.000107]
[1738714786281,0.163702,97738.0,97730.0,0.00511639]
[1738714786504,0.0163701,97739.0,97737.0,0.001]
[1738714786661,0.122777,97738.0,97737.0,0.001]
[1738714787097,0.122781,97735.0,97729.0,0.000107]
[1738714787304,0.122781,97735.0,97729.0,0.001107]
[1738714787480,0.122781,97735.0,97730.0,0.001]
[1738714787695,0.163698,97741.0,97729.0,0.001107]
[1738714787900,0.0163698,97741.0,97729.0,0.000107]
[1738714788080,0.184097,97738.0,97737.0,0.001]
[1738714788281,0.06132,97738.0,97729.0,0.001107]
[1738714788489,0.184098,97737.0,97729.0,0.001107]
[1738714788707,0.12278,97736.0,97730.0,0.001]
[1738714789292,0.122781,97735.0,97730.0,0.001]
[1738714789547,0.122781,97735.0,97729.0,0.000107]
[1738714789725,0.15644021,97735.0,97729.0,0.001107]
[1738714790131,0.15644021,97735.0,97729.0,0.000107]
[1738714790584,0.03365921,97735.0,97730.0,0.001]
[1738714790915,0.03365921,97735.0,97729.0,0.000107]
[1738714791343,0.03365921,97735.0,97729.0,0.001107]
[1738714791547,0.03365921,97735.0,97729.0,0.002107]
[1738714791745,0.06132,97737.0,97729.0,0.002107]
[1738714791925,0.06132,97737.0,97730.0,0.00511639]
[1738714792143,0.122779,97736.0,97730.0,0.00511639]
[1738714792739,0.06132,97737.0,97730.0,0.00511639]
[1738714792914,0.122782,97735.0,97730.0,0.00511639]
[1738714793116,0.184098,97737.0,97730.0,0.00511639]
[1738714793313,0.06132,97739.0,97730.0,0.00511639]
[1738714793565,0.06132,97739.0,97738.0,0.122777]
[1738714793902,0.06132,97744.0,97731.0,0.163714]
[1738714794105,0.06132,97744.0,97738.0,0.00511639]
[1738714794315,0.06132,97744.0,97738.0,0.122777]